bitfinex-derivatives/quotes_ETHF0:USTF0_20250712
["timestamp","ask_amount","ask_price","bid_price","bid_amount"]
[1752300166426,5.45072,2951.9,2951.8,2.511]
[1752300167231,5.45072,2951.9,2951.8,3.18824]
[1752300167530,1.61462,2951.9,2951.8,2.511]
[1752300167730,0.67722,2951.9,2951.8,2.511]
[1752300167926,2.24292,2951.9,2951.8,2.511]
[1752300169338,2.24292,2951.9,2951.8,3.18824]
[1752300169835,0.6772,2952.0,2951.9,0.6428]
[1752300170139,0.6772,2952.0,2951.9,1.5779]
[1752300170333,0.6772,2952.0,2951.9,2.25511]
[1752300170538,0.6772,2952.0,2951.9,3.18101]
[1752300171436,0.67719,2952.1,2952.0,3.18099]
[1752300172637,0.67719,2952.1,2952.0,2.5038]
[1752300172836,1.61459,2952.1,2952.0,3.181]
[1752300173038,0.67719,2952.1,2952.0,3.181]
[1752300174242,0.67719,2952.1,2952.0,2.5038]
[1752300174838,1.61459,2952.1,2952.0,2.5038]
[1752300175036,2.24289,2952.1,2952.0,2.5038]
[1752300175841,4.02277462,2952.1,2952.0,2.5038]
[1752300179144,1.61471,2951.6,2951.5,3.18109]
[1752300179539,2.24301,2951.6,2951.5,2.5038]
[1752300179734,2.24301,2951.6,2951.5,3.18111]
[1752300180744,0.67731,2951.6,2951.5,3.18111]
[1752300181540,0.67726,2951.8,2951.7,3.18104]
[1752300182152,0.67726,2951.8,2951.7,2.5038]
[1752300182448,0.67726,2951.8,2951.7,3.18107]
[1752300183651,1.61466,2951.8,2951.7,3.18107]
[1752300183850,0.9374,2951.8,2951.7,3.18107]
[1752300184244,2.24292,2952.0,2951.9,1.32002]
[1752300184449,2.24287,2952.2,2952.1,3.18095]
[1752300185452,3.17507,2952.2,2952.1,2.5038]
[1752300185954,3.17507,2952.2,2952.1,3.18098]
[1752300186256,2.24287,2952.2,2952.1,3.18098]
[1752300187057,2.24287,2952.2,2952.1,2.5038]
[1752300187454,3.17507,2952.2,2952.1,2.5038]
[1752300187654,3.17507,2952.2,2952.1,3.18098]
[1752300187853,2.24287,2952.2,2952.1,3.18098]
[1752300188254,2.24287,2952.2,2952.1,2.5038]
[1752300188457,3.17507,2952.2,2952.1,2.5038]
[1752300188754,3.17507,2952.2,2952.1,3.18098]
[1752300189658,1.5657,2952.2,2952.1,3.18098]
[1752300190949,1.5605,2952.4,2952.3,3.18093]
[1752300191153,2.23761,2952.4,2952.3,3.18093]
[1752300191658,3.17501,2952.4,2952.3,2.5038]
[1752300192355,3.17501,2952.4,2952.3,3.18093]
[1752300193349,1.5657,2952.7,2952.6,3.14576]
[1752300195254,2.24274,2952.7,2952.6,3.14576]
[1752300195651,2.21497,2953.0,2952.9,1.5147]
[1752300195855,3.06265462,2953.0,2952.9,1.5147]
[1752300196157,2.28046,2952.7,2952.6,2.4531]
[1752300196360,3.20806,2952.7,2952.6,2.4531]
[1752300196750,0.84768462,2952.8,2952.4,1.51978362]
[1752300196751,3.20808,2952.5,2952.4,1.51978362]
[1752300196952,4.05576462,2952.5,2952.4,1.51978362]
[1752300197354,4.05576462,2952.5,2952.4,2.45818362]
[1752300198160,4.05576462,2952.5,2952.4,0.00508362]
[1752300199559,4.05576462,2952.5,2952.4,0.61978362]
[1752300199858,4.05576462,2952.5,2952.4,1.51978362]
[1752300203359,4.05576462,2952.5,2952.4,3.62e-06]
[1752300203558,4.05576462,2952.5,2951.5,4.23131217]
[1752300203559,0.67729,2951.6,2951.5,4.23131217]
[1752300203759,4.05597462,2951.6,2951.5,1.5147]
[1752300204661,0.993,2951.8,2951.5,3.13041]
[1752300204862,1.28767,2951.7,2951.6,2.4531]
[1752300205058,2.28067,2951.7,2951.6,2.4531]
[1752300205362,2.28067,2951.7,2951.6,3.13039]
[1752300205660,1.67022,2951.9,2951.8,3.13034]
[1752300205865,0.993,2951.9,2951.8,3.13034]
[1752300206061,1.67022,2951.9,2951.8,3.13034]
[1752300206466,2.28062,2951.9,2951.8,3.13034]
[1752300206667,2.28062,2951.9,2951.8,2.4531]
[1752300207256,0.9276,2952.1,2952.0,0.6772]
[1752300207458,2.28058,2952.1,2952.0,2.4531]
[1752300208172,0.9276,2952.5,2952.1,2.4531]
[1752300208370,2.28048,2952.5,2952.4,2.4531]
[1752300208869,3.20808,2952.5,2952.4,2.4531]
[1752300209071,4.05576462,2952.5,2952.4,2.4531]
[1752300210970,3.20808,2952.5,2952.4,2.4531]
[1752300211271,2.28048,2952.5,2952.4,2.4531]
[1752300211572,3.20808,2952.5,2952.4,2.4531]
[1752300213170,1.6034,2952.5,2952.4,3.13021]
[1752300213375,1.67513362,2952.7,2952.6,2.51546]
[1752300213675,0.00508362,2952.7,2952.6,3.13016]
[1752300220179,0.00508362,2952.7,2952.6,3.97784462]
[1752300223182,1.60382,2953.3,2953.0,2.5305]
[1752300223477,3.2072,2953.3,2953.2,2.5305]
[1752300224789,4.89992,2953.6,2953.2,2.5305]
[1752300224790,2.28927,2953.5,2953.4,0.6122]
[1752300224990,2.28927,2953.5,2953.4,2.528]
[1752300225695,1.6124,2953.5,2953.4,3.20488]
[1752300225895,2.25532,2953.7,2953.6,0.6122]
[1752300226194,2.25532,2953.7,2953.6,2.569]
[1752300227794,3.18222,2953.7,2953.6,2.569]
[1752300228187,1.5785,2953.7,2953.6,3.24583]
[1752300228499,0.67676,2953.9,2953.8,3.24579]
[1752300228690,0.67676,2954.0,2953.9,3.24576]
[1752300228991,2.25523,2954.1,2954.0,2.26834]
[1752300229196,2.25523,2954.1,2954.0,3.24574]
[1752300230094,2.25523,2954.1,2954.0,2.569]
[1752300230499,3.18213,2954.1,2954.0,2.569]
[1752300234004,3.18213,2954.1,2954.0,3.24574]
[1752300234203,3.18213,2954.1,2954.0,2.569]
[1752300238803,2.5054,2954.1,2954.0,3.24574]
[1752300239000,1.5785,2954.1,2954.0,3.24574]
[1752300239506,2.25522,2954.1,2954.0,3.24574]
[1752300240108,3.18212,2954.1,2954.0,3.24574]
[1752300240306,2.22304,2954.0,2953.9,3.2078]
[1752300240509,0.67679,2953.8,2953.7,3.25089362]
[1752300240808,3.18219,2953.8,2953.7,3.25089362]
[1752300241010,3.18219,2953.8,2953.7,2.57408362]
[1752300241403,3.18219,2953.8,2953.7,3.25089362]
[1752300241905,3.18219,2953.8,2953.7,2.57408362]
[1752300242708,3.18219,2953.8,2953.7,3.25089362]
[1752300243010,2.5054,2953.8,2953.7,3.25089362]
[1752300243310,3.18213,2954.1,2954.0,0.6122]
[1752300243499,3.18213,2954.1,2954.0,1.5896]
[1752300245505,3.18213,2954.1,2954.0,2.26634]
[1752300245709,3.18213,2954.1,2954.0,2.569]
[1752300246709,3.18212,2954.1,2954.0,3.24574]
[1752300247112,1.5785,2954.1,2954.0,3.24574]
[1752300247510,2.25522,2954.1,2954.0,3.24574]
[1752300248204,0.9269,2954.3,2954.0,2.569]
[1752300248405,2.22292,2954.6,2954.5,1.28883]
[1752300248606,2.22292,2954.6,2954.5,2.569]
[1752300249212,3.18202,2954.6,2954.5,2.569]
[1752300249412,3.18202,2954.6,2954.5,3.24563]
[1752300249613,3.18202,2954.6,2954.5,2.569]
[1752300251311,2.25512,2954.6,2954.5,1.5896]
[1752300251615,3.18202,2954.6,2954.5,1.5896]
[1752300252710,3.18202,2954.6,2954.5,3.24563]
[1752300253017,3.18202,2954.6,2954.5,2.569]
[1752300253312,1.5785,2954.6,2954.5,3.24563]
[1752300253908,0.67657,2954.8,2954.7,0.67658]
[1752300254110,2.26977,2954.8,2954.7,3.27778]
[1752300254315,0.9591,2954.8,2954.7,3.27778]
[1752300254618,1.63566,2954.8,2954.7,3.27778]
[1752300254819,0.9591,2954.8,2954.7,3.27778]
[1752300255213,1.63566,2954.8,2954.7,3.27778]
[1752300255416,1.5932,2954.8,2954.7,3.27778]
[1752300256520,5.48003,2954.9,2954.8,3.22666]
[1752300257221,5.48003,2954.9,2954.8,2.5501]
[1752300257420,5.48003,2954.9,2954.8,3.22666]
[1752300258220,0.9822,2955.2,2955.1,0.67649]
[1752300258414,2.2929,2954.6,2954.5,3.2078]
[1752300258615,2.29295,2954.4,2954.3,2.5501]
[1752300258816,4.10223462,2954.4,2954.3,2.5501]
[1752300259918,2.5779,2954.4,2954.3,3.22677]
[1752300260317,3.25455,2954.4,2954.3,3.22677]
[1752300260915,2.5779,2954.4,2954.3,3.22677]
[1752300261618,3.25455,2954.4,2954.3,3.22677]
[1752300261817,2.5779,2954.4,2954.3,3.22677]
[1752300263216,2.5779,2954.8,2954.7,1.6218]
[1752300263423,3.25447,2954.8,2954.7,2.5501]
[1752300263720,3.25447,2954.8,2954.7,1.6218]
[1752300265121,3.25447,2954.8,2954.7,2.5501]
[1752300266123,3.25447,2954.8,2954.7,3.22668]
[1752300268222,0.6341,2954.8,2954.7,3.22668]
[1752300268425,3.25443,2955.0,2954.9,2.5501]
[1752300268815,3.25443,2955.0,2954.9,3.22663]
[1752300270425,2.5779,2955.0,2954.9,3.22663]
[1752300270623,3.25441,2955.0,2954.9,3.22663]
[1752300271522,1.5957,2955.0,2954.9,3.22663]
[1752300272622,0.67644,2955.3,2954.9,1.9044]
[1752300272819,3.25434,2955.3,2955.2,2.5501]
[1752300273221,2.5779,2955.3,2955.2,3.22655]
[1752300273431,2.5779,2955.3,2955.2,4.07423462]
[1752300273630,2.5779,2955.3,2955.2,3.14593462]
[1752300273927,3.25434,2955.3,2955.2,2.29825]
[1752300274624,3.25434,2955.3,2955.2,1.6218]
[1752300275424,3.25434,2955.3,2955.2,2.29827]
[1752300276020,3.25434,2955.3,2955.2,1.6218]
[1752300278221,2.5779,2955.3,2955.2,2.29827]
[1752300278533,3.25434,2955.3,2955.2,2.5501]
[1752300278719,3.25434,2955.3,2955.2,3.22657]
[1752300282534,3.25434,2955.3,2955.2,1.6218]
[1752300282731,3.25434,2955.3,2955.2,2.5501]
[1752300283131,3.25434,2955.3,2955.2,3.22657]
[1752300283331,1.5957,2955.3,2955.2,3.22657]
[1752300283729,1.5957,2955.5,2955.4,2.25042]
[1752300283935,1.5957,2955.5,2955.4,4.08540462]
[1752300284327,7.0778,2956.1,2955.4,3.40898462]
[1752300284527,0.6363,2955.8,2955.7,3.21765]
[1752300285034,1.5979,2955.8,2955.7,3.21765]
[1752300285937,2.27423,2955.8,2955.7,3.21765]
[1752300286136,2.27423,2955.8,2955.7,2.5413]
[1752300286635,3.23193,2955.8,2955.7,2.5413]
[1752300288936,3.23193,2955.8,2955.7,3.21765]
[1752300289337,3.23193,2955.8,2955.7,2.5413]
[1752300292545,3.23193,2955.8,2955.2,0.27547678]
[1752300292546,0.6363,2955.5,2955.2,0.00508362]
[1752300292740,3.22476,2954.8,2954.7,3.03797524]
[1752300292940,3.22476,2954.8,2954.5,1.8939]
[1752300292941,3.2248,2954.6,2954.5,2.5196]
[1752300293543,3.2248,2954.6,2954.5,1.613]
[1752300293744,3.22485,2954.4,2954.3,6.87147524]
[1752300293945,4.07253462,2954.4,2954.3,3.2078]
[1752300294546,3.22492,2954.1,2954.0,5.7274]
[1752300296253,1.5905,2954.1,2954.0,6.40414]
[1752300297045,0.67666,2954.4,2954.2,1.5323]
[1752300297251,2.26716,2954.4,2954.3,2.5196]
[1752300298250,2.5482,2954.4,2954.3,2.5196]
[1752300298448,1.5905,2954.4,2954.3,3.19627]
[1752300298644,1.5905,2954.4,2954.3,3.36728462]
[1752300299357,1.5905,2954.4,2954.3,4.04395462]
[1752300299551,2.26715,2954.4,2954.3,4.04395462]
[1752300300056,3.22485,2954.4,2954.3,2.5196]
[1752300300357,3.22485,2954.4,2954.2,0.67669]
[1752300300358,1.31302,2954.1,2954.0,6.40413]
[1752300300555,2.5482,2954.1,2954.0,6.40413]
[1752300301654,1.5905,2954.1,2954.0,6.40413]
[1752300303055,2.5482,2954.1,2954.0,6.40413]
[1752300303249,3.22492,2954.1,2954.0,6.40413]
[1752300303449,2.5482,2954.1,2954.0,6.40413]
[1752300304247,0.67666,2954.4,2954.2,0.67668]
[1752300304451,2.26716,2954.4,2954.3,2.5196]
[1752300304851,0.67672,2954.1,2954.0,4.8208]
[1752300305154,3.22492,2954.1,2954.0,5.7274]
[1752300305353,3.22492,2954.1,2954.0,28.8264]
[1752300305654,1.31306,2953.9,2953.8,2.5196]
[1752300305954,3.22505,2953.5,2953.4,3.03797524]
[1752300306254,0.6769,2953.3,2953.2,4.02527524]
[1752300306457,3.2251,2953.3,2953.2,1.613]
[1752300308454,3.22515,2953.1,2953.0,2.5196]
[1752300308653,3.22515,2953.1,2953.0,25.6306]
[1752300308858,3.22515,2953.1,2953.0,2.5196]
[1752300309252,3.22515,2953.1,2952.5,1.69509321]
[1752300309253,0.6363,2953.0,2952.6,3.2078]
[1752300309453,3.22522,2952.8,2952.7,23.111]
[1752300311455,2.5482,2952.7,2952.3,3.2078]
[1752300311656,3.22528,2952.5,2952.4,24.732]
[1752300312056,2.5482,2952.5,2952.4,25.6386]
[1752300312556,2.5482,2952.5,2952.4,26.31571]
[1752300313450,0.9542,2952.9,2952.8,3.1933]
[1752300313655,3.17257,2953.0,2952.9,2.5163]
[1752300314460,3.17257,2953.0,2952.9,1.6097]
[1752300315160,2.4956,2953.0,2952.9,3.19329]
[1752300315362,3.17257,2953.0,2952.9,3.19329]
[1752300315660,2.4956,2953.0,2952.9,3.19329]
[1752300315961,1.5905,2953.0,2952.9,3.19329]
[1752300316460,2.4956,2953.0,2952.9,3.19329]
[1752300317356,3.17257,2953.0,2952.9,3.19329]
[1752300317556,2.4956,2953.0,2952.9,3.19329]
[1752300318259,3.17257,2953.0,2952.9,3.19329]
[1752300320464,1.60462,2952.8,2952.7,2.24363]
[1752300320664,3.11152,2952.8,2952.7,26.34963]
[1752300321263,3.11152,2952.8,2952.7,1.6261]
[1752300321458,3.11152,2952.8,2952.7,25.42914]
[1752300321654,4.90015,2953.2,2952.6,3.2078]
[1752300321655,3.11154,2952.7,2952.6,3.2078]
[1752300322665,3.11156,2952.6,2952.5,23.125]
[1752300323263,2.4345,2952.6,2952.5,23.7671]
[1752300323563,3.11153,2952.8,2952.7,3.22764]
[1752300324363,0.9051,2953.1,2953.0,0.67697]
[1752300324562,3.11147,2953.1,2953.0,2.5506]
[1752300324963,3.11147,2953.1,2953.0,1.6261]
[1752300325966,2.20637,2953.1,2953.0,0.6421]
[1752300326165,1.27879,2952.9,2952.8,3.2276]
[1752300326370,3.11149,2952.9,2952.8,3.2276]
[1752300327270,3.11149,2952.9,2952.8,2.5506]
[1752300328371,1.5294,2952.9,2952.8,3.22762]
[1752300328771,1.5294,2953.2,2953.1,3.22755]
[1752300329481,2.20632,2953.2,2953.1,3.22755]
[1752300331061,3.11142,2953.2,2953.1,3.22755]
[1752300331473,2.4345,2953.2,2953.1,3.22755]
[1752300331868,1.5294,2953.2,2953.1,3.22755]
[1752300332069,1.5294,2953.3,2953.2,2.24352]
[1752300332274,1.5294,2953.3,2953.2,3.22752]
[1752300332972,1.27875,2953.1,2953.0,1.31906]
[1752300333174,3.11145,2953.1,2953.0,3.22756]
[1752300333373,1.5294,2953.1,2953.0,3.22756]
[1752300333875,2.18379,2953.4,2953.3,1.319]
[1752300334077,2.18379,2953.4,2953.3,3.2275]
[1752300334374,0.6018,2953.6,2953.5,3.22745]
[1752300334576,2.20623,2953.6,2953.5,2.5506]
[1752300335177,3.11133,2953.6,2953.5,2.5506]
[1752300337568,2.4345,2953.3,2953.0,0.984]
[1752300337774,2.20637,2953.0,2952.9,1.6261]
[1752300337971,0.67699,2952.9,2952.8,3.2078]
[1752300338273,0.67699,2952.9,2952.7,0.984]
[1752300338274,0.67702,2952.8,2952.7,0.984]
[1752300338472,3.11152,2952.8,2952.7,1.6261]
[1752300341187,3.11152,2952.8,2952.7,2.5506]
[1752300341478,0.9276,2952.8,2952.7,3.22764]
[1752300342081,1.5069,2953.1,2953.0,2.5506]
[1752300342284,2.18385,2953.1,2953.0,2.5506]
[1752300342580,3.11145,2953.1,2953.0,2.5506]
[1752300343371,0.6018,2953.1,2953.0,3.22757]
[1752300343573,2.20631,2953.3,2953.2,1.31902]
[1752300343782,1.5294,2953.3,2953.2,3.18822]
[1752300344280,2.2063,2953.3,2953.2,3.18822]
[1752300344583,3.1424,2953.3,2953.2,3.18822]
[1752300345385,3.1424,2953.3,2953.2,2.5113]
[1752300347485,3.15279,2953.4,2953.3,2.5522]
[1752300349389,1.29935,2953.1,2953.0,2.28445]
[1752300349589,2.21675,2953.1,2953.0,25.40245]
[1752300349780,2.21675,2953.1,2953.0,24.7255]
[1752300349986,3.15285,2953.1,2953.0,2.5522]
[1752300353485,2.21674,2953.2,2953.1,2.5522]
[1752300354295,3.15284,2953.2,2953.1,2.5522]
[1752300355391,2.21674,2953.2,2953.1,2.5522]
[1752300355691,3.2078,2953.5,2953.1,0.6316]
[1752300355886,2.21668,2953.4,2953.3,0.6316]
[1752300356091,2.21668,2953.4,2953.3,2.5522]
[1752300356286,3.15278,2953.4,2953.3,2.5522]
[1752300358381,2.21668,2953.4,2953.3,3.2291]
[1752300358582,0.67688,2953.4,2953.3,3.2291]
[1752300358784,2.21668,2953.4,2953.3,2.5522]
[1752300359489,3.15278,2953.4,2953.3,2.5522]
[1752300361187,0.67695,2953.1,2953.0,1.65285]
[1752300361390,2.21675,2953.1,2953.0,26.32915]
[1752300361889,1.29932,2953.3,2953.2,1.5763]
[1752300362090,2.21672,2953.3,2953.2,2.5522]
[1752300362590,2.21672,2953.3,2953.2,3.22912]
[1752300362785,0.67692,2953.3,2953.2,3.22912]
[1752300363191,0.67692,2953.3,2953.2,2.5522]
[1752300363387,0.67689,2953.4,2953.3,0.6769]
[1752300363589,1.59423,2953.6,2953.5,2.5522]
[1752300363993,2.21663,2953.6,2953.5,2.5522]
[1752300364788,3.15273,2953.6,2953.5,1.5763]
[1752300365088,3.15278,2953.4,2953.3,2.5522]
[1752300366190,3.15278,2953.4,2953.3,1.5763]
[1752300368391,3.15282,2953.2,2953.1,2.5522]
[1752300370897,2.23547,2953.0,2952.9,2.5522]
[1752300371100,3.15287,2953.0,2952.9,2.5522]
[1752300372095,3.15287,2953.0,2952.9,1.5763]
[1752300373091,3.15287,2953.0,2952.9,2.5522]
[1752300373386,2.21677,2953.0,2952.9,3.22919]
[1752300373594,3.16067,2953.0,2952.9,2.5522]
[1752300375300,3.16067,2953.0,2952.9,1.5763]
[1752300375697,3.26949,2952.9,2952.8,3.8263]
[1752300376305,3.26949,2952.9,2952.8,4.7394]
[1752300377097,3.26949,2952.9,2952.8,6.37352]
[1752300377402,3.26949,2952.9,2952.8,5.6965]
[1752300379507,3.26949,2952.9,2952.8,4.7394]
[1752300380701,1.69236,2953.2,2952.5,7.15887524]
[1752300380702,1.6012,2952.7,2952.5,7.15887524]
[1752300380901,3.26956,2952.6,2952.5,3.2078]
[1752300381097,2.32571,2952.4,2952.3,0.6185]
[1752300381297,2.32571,2952.4,2952.3,1.5316]
[1752300381496,2.32578,2952.1,2952.0,4.56957524]
[1752300381696,0.67722,2951.9,2951.8,28.176]
[1752300381906,3.26972,2951.9,2951.8,28.7945]
[1752300382099,3.26972,2951.9,2951.8,5.6965]
[1752300382601,3.26972,2951.9,2951.8,4.7394]
[1752300383003,3.26972,2951.9,2951.8,5.6965]
[1752300383403,0.67718,2952.1,2952.0,0.6185]
[1752300383611,0.9913,2952.4,2952.3,2.4887]
[1752300383907,1.66841,2952.4,2952.3,2.4887]
[1752300384110,2.32571,2952.4,2952.3,2.4887]
[1752300384415,3.26961,2952.4,2952.3,2.4887]
[1752300384809,6.47741,2952.4,2952.3,1.5316]
[1752300385004,3.26965,2952.2,2952.1,1.5316]
[1752300385312,3.26965,2952.2,2952.1,2.4887]
[1752300385512,3.26965,2952.2,2952.1,3.16588]
[1752300385811,3.26965,2952.2,2952.1,2.4887]
[1752300387312,3.26965,2952.2,2952.1,1.5316]
[1752300387714,3.26965,2952.2,2952.1,2.4887]
[1752300388109,3.26965,2952.2,2952.1,1.5316]
[1752300389513,3.26965,2952.2,2952.1,2.4887]
[1752300390822,3.26965,2952.2,2952.1,3.16588]
[1752300391018,3.26965,2952.2,2952.1,2.4887]
[1752300391219,2.32575,2952.2,2952.1,2.4887]
[1752300391618,3.26965,2952.2,2952.1,2.4887]
[1752300393324,2.5925,2952.2,2952.1,3.16588]
[1752300393521,3.26965,2952.2,2952.1,2.4887]
[1752300393719,3.2078,2952.7,2952.3,1.29562]
[1752300393915,2.32568,2952.5,2952.4,3.16581]
[1752300394123,3.26958,2952.5,2952.4,2.4887]
[1752300397125,2.5925,2952.3,2952.2,1.5316]
[1752300397322,0.67718,2952.1,2952.0,1.5316]
[1752300397626,3.26972,2951.9,2951.8,2.4887]
[1752300398021,3.26972,2951.9,2951.8,1.5316]
[1752300398225,3.26974,2951.8,2951.7,3.8263]
[1752300398422,3.26974,2951.8,2951.7,5.6965]
[1752300399731,3.26974,2951.8,2951.7,4.7394]
[1752300400831,3.26974,2951.8,2951.7,3.2078]
[1752300401031,3.26981,2951.5,2951.4,5.6965]
[1752300402737,3.26981,2951.5,2951.4,4.7394]
[1752300403233,3.26981,2951.5,2951.4,5.6965]
[1752300403639,3.27781,2951.5,2951.4,5.6965]
[1752300405038,3.22578,2951.2,2951.1,3.03797524]
[1752300405341,2.24421,2951.1,2951.0,3.64237524]
[1752300405536,3.19611,2951.1,2951.0,1.533]
[1752300406537,3.19615,2950.9,2950.8,5.49427524]
[1752300408036,3.19615,2950.9,2950.8,3.13377]
[1752300408241,2.5187,2950.9,2950.8,3.13377]
[1752300408441,1.639,2951.2,2951.1,2.4563]
[1752300408640,1.639,2951.2,2951.1,3.1337]
[1752300408935,0.6774,2951.2,2951.1,3.1337]
[1752300409339,0.6774,2951.2,2951.1,2.4563]
[1752300409539,1.639,2951.2,2951.1,2.4563]
[1752300410734,1.639,2951.2,2951.1,3.1337]
[1752300411337,1.639,2951.2,2951.1,2.4563]
[1752300411642,1.63894,2951.4,2951.3,0.67735]
[1752300411844,2.24414,2951.4,2951.3,1.28175]
[1752300412033,2.24414,2951.4,2951.3,3.13365]
[1752300412442,2.24414,2951.4,2951.3,2.4563]
[1752300412635,2.24413,2951.5,2951.4,2.4563]
[1752300413235,1.5668,2951.5,2951.4,3.13364]
[1752300413546,3.2078,2951.8,2951.7,0.6044]
[1752300413740,0.9616,2952.0,2951.7,0.6044]
[1752300413944,2.24401,2952.0,2951.9,3.13352]
[1752300414141,2.24401,2952.0,2951.9,2.4563]
[1752300417653,0.6772,2952.0,2951.9,2.4563]
[1752300418045,2.244,2952.0,2951.9,2.4563]
[1752300418250,3.19597,2951.7,2951.6,4.7408]
[1752300418848,3.19597,2951.7,2951.6,5.6641]
[1752300420048,3.19597,2951.7,2951.6,4.7408]
[1752300420352,3.19604,2951.4,2951.3,2.4563]
[1752300422045,2.24414,2951.4,2951.3,3.13366]
[1752300422251,2.24414,2951.4,2951.3,2.4563]
[1752300422755,3.19604,2951.4,2951.3,1.533]
[1752300423149,3.19604,2951.4,2951.3,2.4563]
[1752300423554,2.24414,2951.4,2951.3,2.4563]
[1752300424556,2.24414,2951.4,2951.3,3.13366]
[1752300424759,2.24414,2951.4,2951.3,2.4563]
[1752300427456,3.19604,2951.4,2951.3,2.4563]
[1752300427653,1.28263,2951.0,2950.9,4.7408]
[1752300427858,3.19613,2951.0,2950.9,5.6641]
[1752300429656,3.19613,2951.0,2950.9,2.4563]
[1752300432560,3.19613,2951.0,2950.9,5.6641]
[1752300433156,2.24423,2951.0,2950.9,5.6641]
[1752300433352,1.5668,2951.0,2950.9,6.34155]
[1752300433555,1.28259,2951.2,2951.1,1.28179]
[1752300433760,0.6052,2951.2,2951.1,4.87851251]
[1752300434059,1.28258,2951.2,2951.1,4.87851251]
[1752300434256,0.67738,2951.2,2951.1,4.87851251]
[1752300434456,0.67737,2951.3,2951.2,1.29797]
[1752300434657,0.67737,2951.3,2951.2,2.5199]
[1752300434858,1.63897,2951.3,2951.2,2.5199]
[1752300435359,2.29467,2951.3,2951.2,2.5199]
[1752300435761,2.29467,2951.3,2951.2,3.19728]
[1752300435762,1.6173,2951.3,2951.2,3.19728]
[1752300436157,2.29466,2951.3,2951.2,2.5199]
[1752300437361,2.29220196,2951.3,2951.2,2.5199]
[1752300438463,4.1232,2951.6,2951.2,2.5199]
[1752300438657,0.6557,2951.4,2951.3,2.5528]
[1752300439264,1.33304,2951.4,2951.3,2.5528]
[1752300439456,3.22614,2951.4,2951.3,2.5528]
[1752300440957,3.22013609,2954.1,2953.5,0.9604]
[1752300441160,0.9154,2954.4,2954.3,0.0042]
[1752300441357,0.9154,2954.4,2954.3,4.84487]
[1752300441757,0.9154,2954.4,2954.3,5.11981866]
[1752300442061,0.9154,2954.4,2954.3,5.46683901]
[1752300442260,0.9154,2954.4,2954.3,4.84487]
[1752300442458,4.66062933,2954.4,2954.3,3.71774355]
[1752300442653,4.66062933,2954.4,2954.3,4.03500154]
[1752300442861,5.63832933,2954.4,2954.3,4.03500154]
[1752300443060,5.63832933,2954.4,2954.3,5.84475043]
[1752300443262,5.63832933,2954.4,2954.3,4.03500154]
[1752300444257,5.63832933,2954.4,2954.3,5.23796994]
[1752300445258,5.63832933,2954.4,2954.3,4.53384429]
[1752300445461,5.63832933,2954.4,2954.3,6.17091429]
[1752300445661,4.66062933,2954.4,2954.3,9.0713052]
[1752300445861,1.5711,2954.4,2954.3,9.0713052]
[1752300446257,1.5711,2954.4,2954.3,7.8683368]
[1752300446457,1.5711,2954.4,2954.3,8.56136906]
[1752300446664,1.5711,2954.4,2954.3,9.09014454]
[1752300447267,1.5711,2954.4,2954.3,7.88717614]
[1752300447465,0.9154,2954.4,2954.3,7.88717614]
[1752300447663,2.5488,2954.6,2954.5,0.9604]
[1752300447967,2.5488,2954.6,2954.5,3.20471131]
[1752300448267,6.31492933,2954.6,2954.5,1.34488363]
[1752300448666,3.2078,2956.8,2955.5,0.0042]
[1752300448857,3.2078,2956.8,2956.2,4.84444]
[1752300449060,3.2078,2957.5,2956.5,4.90522251]
[1752300449258,48.763,2958.9,2956.5,4.90522251]
[1752300449259,0.9777,2957.8,2957.1,3.2078]
[1752300449463,2.56908,2957.3,2957.2,0.52877548]
[1752300449868,0.9154,2957.2,2956.4,3.88398]
[1752300450065,0.9154,2956.5,2956.4,4.164]
[1752300450264,0.9154,2956.5,2956.4,5.33630723]
[1752300450465,0.9777,2956.7,2956.4,4.97717196]
[1752300450661,0.9154,2956.7,2956.6,4.22918019]
[1752300450865,0.9154,2956.7,2956.6,4.72529742]
[1752300451070,0.9154,2957.0,2956.7,0.67611]
[1752300451371,2.56915,2957.0,2956.9,4.164]
[1752300451562,2.56915,2957.0,2956.9,4.97715718]
[1752300451764,5.65867933,2957.0,2956.9,4.97715718]
[1752300452268,5.65867933,2957.0,2956.9,0.81315718]
[1752300452569,5.65867933,2957.0,2956.9,0.04199718]
[1752300454867,3.08952933,2956.6,2956.1,3.2078]
[1752300455066,3.76573933,2956.3,2956.2,0.9562]
[1752300455267,4.68113933,2956.3,2956.2,0.9562]
[1752300455468,2.56934,2956.2,2956.1,3.2078]
[1752300455669,5.65886933,2956.2,2956.1,4.164]
[1752300456471,0.9154,2956.2,2956.1,5.86142251]
[1752300456773,1.59164,2956.2,2956.1,5.86142251]
[1752300457267,4.68116933,2956.2,2956.1,5.86142251]
[1752300457773,4.00492933,2956.2,2956.1,5.86142251]
[1752300457977,4.68116933,2956.2,2956.1,5.86562251]
[1752300458468,1.59164,2956.2,2956.1,5.86562251]
[1752300458665,0.9154,2956.2,2956.1,5.86562251]
[1752300458973,1.59164,2956.2,2956.1,5.86562251]
[1752300460370,3.22504,2956.2,2956.1,5.86562251]
[1752300461676,2.81918994,2956.2,2956.1,2.65782251]
[1752300461876,2.81918994,2956.2,2956.1,3.18627311]
[1752300464674,2.81918994,2956.2,2956.1,3.50334374]
[1752300465076,5.90871927,2956.2,2956.1,0.84552123]
[1752300466074,3.19253,2955.8,2955.7,0.89452186]
[1752300466373,3.19253,2955.8,2955.5,0.89479825]